{"text_format":"3","workbook":"xlsx","n_sheets":2,"sheets":["Groepsindeling","Kamerbezettng"],"not_rendered":{"external_links":1},"read":"whole","date_system":"1900"}

{"sheet":"Groepsindeling","index":0,"n_rows":23,"n_cols":8,"rows_kept":23,"merged":[[0,0,0,1],[0,2,0,3],[0,4,0,5],[0,6,0,7],[1,0,1,1],[1,2,1,3],[1,4,1,5],[1,6,1,7],[2,0,2,1],[2,2,2,3],[2,4,2,5],[2,6,2,7],[3,0,3,1],[3,2,3,3],[3,4,3,5],[3,6,3,7],[4,0,4,1],[4,2,4,3],[4,4,4,5],[4,6,4,7],[5,0,5,1],[5,2,5,3],[5,4,5,5],[5,6,5,7],[6,0,6,1],[6,2,6,3],[6,4,6,5],[6,6,6,7],[7,0,7,1],[7,2,7,3],[7,4,7,5],[7,6,7,7],[8,0,8,1],[8,2,8,3],[8,4,8,5],[8,6,8,7],[9,0,9,1],[9,2,9,3],[9,4,9,5],[9,6,9,7],[12,0,12,1],[12,2,12,3],[12,4,12,5],[13,0,13,1],[13,2,13,3],[13,4,13,5],[14,0,14,1],[14,2,14,3],[14,4,14,5],[15,0,15,1],[15,2,15,3],[15,4,15,5],[16,0,16,1],[16,2,16,3],[16,4,16,5],[17,0,17,1],[17,2,17,3],[17,4,17,5],[18,0,18,1],[18,2,18,3],[18,4,18,5],[19,0,19,1],[19,2,19,3],[19,4,19,5],[20,0,20,1],[20,2,20,3],[20,4,20,5],[21,0,21,1],[21,2,21,3],[21,4,21,5]]}
["Groep: Wil Langenberg",null,"Groep: Erik Kuijpers",null,"Groep: Frans Smulders",null,"Groep: Dick Willemsen"]
[{"$f":"'[1]Deelname weekend'!A17","v":"Wil & Nollie Langenberg"},null,"Erik Kuijpers",null,{"$f":"'[1]Deelname weekend'!A12","v":"Frans & Brigit Smulders"},null,{"$f":"'[1]Deelname weekend'!A20","v":"Dick Willemsen"}]
[{"$f":"'[1]Deelname weekend'!A2","v":"Jos Soetens"},null,"Piet Hendrikx","Piet Hendrikx",{"$f":"'[1]Deelname weekend'!A6","v":"Femke & Patrick Smulders - v. Lierop"},null,{"$f":"'[1]Deelname weekend'!A26","v":"Rinus Willemsen"}]
[{"$f":"'[1]Deelname weekend'!A11","v":"Theo van den Broek"},null,"Gilbert Claassen","Gilbert Claassen",{"$f":"'[1]Deelname weekend'!A13","v":"Willy & Marion Schuurmans"},null,{"$f":"'[1]Deelname weekend'!A14","v":"Richard Alsem"}]
[{"$f":"'[1]Deelname weekend'!A22","v":"Jean Pierre van Daal"},null,{"$f":"'[1]Deelname weekend'!A5","v":"Hans Ophof"},{"$nulls":3},"Wan Merks"]
[{"$f":"'[1]Deelname weekend'!A3","v":"Dennis Soetens"},null,{"$f":"'[1]Deelname weekend'!A15","v":"Jac Keijsers"}]
[{"$f":"'[1]Deelname weekend'!A10","v":"Hans Adriaans"},null,"Peter van Zeeland"]
[]
[]
[]
[6,"Motoren",6,"Motoren",3,"Motoren",4,"Motoren"]
[]
["Groep: Toon Trouwen",null,"Groep: Onno Kruik",null,"Groep: "]
["Toon Trouwen",null,{"$f":"'[1]Deelname weekend'!A4","v":"Onno & Sandra Kruik - Geenen"}]
[{"$f":"'[1]Deelname weekend'!A7","v":"Erik Bekkers"},null,{"$f":"'[1]Deelname weekend'!A19","v":"Heinz Kessels"}]
[{"$f":"'[1]Deelname weekend'!A18","v":"Ivo & Stijn Treverlo"},null,{"$f":"'[1]Deelname weekend'!A27","v":"Yannick 't Mannetje"}]
[{"$f":"'[1]Deelname weekend'!A28","v":"Marc Verbaten"},null,{"$f":"'[1]Deelname weekend'!A23","v":"Thomas van Gerwen"}]
[{"$f":"'[1]Deelname weekend'!A29","v":"Ronnie van der Heijden"}]
[]
[]
[]
[]
[5,"Motoren",5,"Motoren",null,"Motoren"]

{"sheet":"Kamerbezettng","index":1,"n_rows":23,"n_cols":4,"rows_kept":23}
["Naam","Naam","Naam","Kamer"]
["Jos Soetens","Dennis Soetens",null,"DZ"]
["Onno & Sandra Kruik - Geenen",null,null,"DZ"]
["Hans Ophof","-","-","EZ"]
["Femke & Patrick Smulders - v. Lierop",null,"Kinderbed extra","DZ"]
["Erik Bekkers","Marc Verbaten",null,"DZ"]
["Erik & Wietske Kuijpers",null,null,"DZ"]
["Toon & Els Trouwen",null,null,"DZ"]
["Hans Adriaans","-","-","EZ"]
["Theo van den Broek","Jean Pierre van Daal",null,"DZ"]
["Frans & Brigit Smulders",null,null,"DZ"]
["Willy & Marion Schuurmans",null,null,"DZ"]
["Richard Alsem","-","-","EZ"]
["Jac Keijsers","-","-","EZ"]
["Wan & Dian Merks",null,null,"DZ"]
["Wil & Nollie Langenberg",null,null,"DZ"]
["Ivo & Stijn Treverlo",null,null,"DZ"]
["Heinz Kessels","-","-","EZ"]
["Dick Willemsen","Rinus Willemsen",null,"DZ"]
["Peter & Jozee van Zeeland",null,null,"DZ"]
["Thomas van Gerwen","-","-","EZ"]
["Piet Hendrikx","Gilbert Claassen",null,"DZ"]
["Yannick 't Mannetjei","Ronnie van der Heijden",null,"DZ"]